[Event "Titled Tuesday Blitz January 17 Late 2023"]
[White "Rose, Felix"]
[Black "Szyszylo, Rafal"]
[WhiteFideId "5105722"]
[BlackFideId "1109626"]
[WhiteElo "2091"]
[BlackElo "2091"]
[Result "0-1"]
[Round "06"]
[TimeControl "180+2"]
[Date "2023.01.17"]
[WhiteClock "0:00:12"]
[BlackClock "0:00:18"]

1. d4 {[%clk 0:03:00]}  g6 {[%clk 0:02:55]} 2. e4 {[%clk 0:02:59]}  d6 {[%clk 0:02:54]} 3. Nf3 {[%clk 0:02:59]}  Nf6 {[%clk 0:02:54]} 4. Nc3 {[%clk 0:02:59]}  Bg7 {[%clk 0:02:54]} 5. h3 {[%clk 0:02:59]}  O-O {[%clk 0:02:54]} 6. Be3 {[%clk 0:03:00]}  Nbd7 {[%clk 0:02:53]} 7. e5 {[%clk 0:02:58]}  Ne8 {[%clk 0:02:51]} 8. Qd2 {[%clk 0:02:57]}  c5 {[%clk 0:02:50]} 9. O-O-O {[%clk 0:02:52]}  cxd4 {[%clk 0:02:49]} 10. Bxd4 {[%clk 0:02:50]}  dxe5 {[%clk 0:02:42]} 11. Bxe5 {[%clk 0:02:50]}  Nef6 {[%clk 0:02:25]} 12. Bxf6 {[%clk 0:02:13]}  Bxf6 {[%clk 0:02:16]} 13. Bb5 {[%clk 0:02:13]}  Qa5 {[%clk 0:02:11]} 14. Bxd7 {[%clk 0:02:04]}  Rd8 {[%clk 0:02:10]} 15. Nd5 {[%clk 0:01:30]}  Qxa2 {[%clk 0:02:09]} 16. Nxf6+ {[%clk 0:01:23]}  exf6 {[%clk 0:02:09]} 17. Qd5 {[%clk 0:01:05]}  Qa1+ {[%clk 0:01:45]} 18. Kd2 {[%clk 0:01:05]}  Qxb2 {[%clk 0:01:37]} 19. Rhe1 {[%clk 0:00:56]}  Bxd7 {[%clk 0:01:17]} 20. Ke3 {[%clk 0:00:42]}  Qxc2 {[%clk 0:01:03]} 21. Qxb7 {[%clk 0:00:38]}  Qc5+ {[%clk 0:00:36]} 22. Kf4 {[%clk 0:00:34]}  Bc6 {[%clk 0:00:35]} 23. Rxd8+ {[%clk 0:00:17]}  Rxd8 {[%clk 0:00:36]} 24. Qe7 {[%clk 0:00:17]}  Qf5+ {[%clk 0:00:20]} 25. Kg3 {[%clk 0:00:17]}  Re8 {[%clk 0:00:20]} 26. Qb4 {[%clk 0:00:12]}  Rxe1 {[%clk 0:00:19]} 27. Qxe1 {[%clk 0:00:11]}  Bxf3 {[%clk 0:00:19]} 28. Qe8+ {[%clk 0:00:11]}  Kg7 {[%clk 0:00:18]} 29. gxf3 {[%clk 0:00:12]}  Qe5+ {[%clk 0:00:18]} 30. f4 {[%clk 0:00:12]}  Qxe8 {[%clk 0:00:18]} 0-1


[Site "https://www.chess.com"]

[Event "Titled Tuesday Blitz January 17 Late 2023"]
[White "Davidson, Kevin"]
[Black "Fajdetic, Hrvoje"]
[WhiteFideId "2056810"]
[BlackFideId "14501945"]
[WhiteElo "2154"]
[BlackElo "2151"]
[Result "1-0"]
[Round "06"]
[TimeControl "180+2"]
[Date "2023.01.17"]
[WhiteClock "0:00:01"]
[BlackClock "0:00:01"]

1. e4 {[%clk 0:03:00]}  c5 {[%clk 0:02:59]} 2. Nf3 {[%clk 0:02:59]}  a6 {[%clk 0:02:58]} 3. c4 {[%clk 0:02:58]}  Nc6 {[%clk 0:02:56]} 4. d4 {[%clk 0:02:59]}  cxd4 {[%clk 0:02:57]} 5. Nxd4 {[%clk 0:02:59]}  g6 {[%clk 0:02:11]} 6. Nc3 {[%clk 0:02:56]}  Bg7 {[%clk 0:02:06]} 7. Be3 {[%clk 0:02:56]}  d6 {[%clk 0:02:04]} 8. Be2 {[%clk 0:02:55]}  Nf6 {[%clk 0:02:02]} 9. f3 {[%clk 0:02:51]}  O-O {[%clk 0:01:58]} 10. O-O {[%clk 0:02:50]}  Nxd4 {[%clk 0:01:53]} 11. Bxd4 {[%clk 0:02:50]}  Be6 {[%clk 0:01:54]} 12. Qd2 {[%clk 0:02:49]}  Rc8 {[%clk 0:01:52]} 13. b3 {[%clk 0:02:46]}  Nd7 {[%clk 0:01:51]} 14. Bxg7 {[%clk 0:02:24]}  Kxg7 {[%clk 0:01:52]} 15. Rac1 {[%clk 0:02:18]}  Qa5 {[%clk 0:01:50]} 16. Rfd1 {[%clk 0:02:13]}  Rc6 {[%clk 0:01:27]} 17. Qd4+ {[%clk 0:01:58]}  f6 {[%clk 0:01:24]} 18. Nd5 {[%clk 0:01:54]}  Bxd5 {[%clk 0:01:17]} 19. exd5 {[%clk 0:01:52]}  Rc7 {[%clk 0:01:12]} 20. Qe3 {[%clk 0:01:29]}  Qc5 {[%clk 0:01:10]} 21. Kf2 {[%clk 0:01:15]}  f5 {[%clk 0:01:06]} 22. f4 {[%clk 0:01:09]}  a5 {[%clk 0:01:06]} 23. Qxc5 {[%clk 0:00:57]}  Nxc5 {[%clk 0:01:05]} 24. Bf3 {[%clk 0:00:56]}  Rfc8 {[%clk 0:00:57]} 25. Ke3 {[%clk 0:00:55]}  Na6 {[%clk 0:00:44]} 26. Kd4 {[%clk 0:00:48]}  b5 {[%clk 0:00:38]} 27. Be2 {[%clk 0:00:42]}  b4 {[%clk 0:00:36]} 28. Bf3 {[%clk 0:00:36]}  Nc5 {[%clk 0:00:19]} 29. Re1 {[%clk 0:00:33]}  a4 {[%clk 0:00:19]} 30. Re3 {[%clk 0:00:32]}  Kf7 {[%clk 0:00:18]} 31. Rce1 {[%clk 0:00:31]}  Ra8 {[%clk 0:00:18]} 32. h3 {[%clk 0:00:24]}  axb3 {[%clk 0:00:18]} 33. axb3 {[%clk 0:00:23]}  Ra3 {[%clk 0:00:17]} 34. Bd1 {[%clk 0:00:20]}  Ra1 {[%clk 0:00:16]} 35. g4 {[%clk 0:00:18]}  Rb1 {[%clk 0:00:12]} 36. gxf5 {[%clk 0:00:16]}  Ra7 {[%clk 0:00:07]} 37. fxg6+ {[%clk 0:00:15]}  hxg6 {[%clk 0:00:08]} 38. f5 {[%clk 0:00:14]}  Rba1 {[%clk 0:00:05]} 39. fxg6+ {[%clk 0:00:12]}  Kxg6 {[%clk 0:00:05]} 40. Rg3+ {[%clk 0:00:07]}  Kh7 {[%clk 0:00:05]} 41. Bc2+ {[%clk 0:00:05]}  Kh8 {[%clk 0:00:05]} 42. Rxa1 {[%clk 0:00:03]}  Rxa1 {[%clk 0:00:04]} 43. Re3 {[%clk 0:00:03]}  Rc1 {[%clk 0:00:02]} 44. Bd3 {[%clk 0:00:02]}  Nxb3+ {[%clk 0:00:02]} 45. Ke4 {[%clk 0:00:02]}  Nd2+ {[%clk 0:00:01]} 46. Kf4 {[%clk 0:00:01]} 1-0


[Site "https://www.chess.com"]

[Event "Titled Tuesday Blitz January 17 Late 2023"]
[White "Batista, Renato Luiz"]
[Black "Liu, Casper"]
[WhiteFideId "2106540"]
[BlackFideId "1454153"]
[WhiteElo "2174"]
[BlackElo "2278"]
[Result "1-0"]
[Round "06"]
[TimeControl "180+2"]
[Date "2023.01.17"]
[WhiteClock "0:00:22"]
[BlackClock "0:01:59"]

1. e4 {[%clk 0:02:50]}  e5 {[%clk 0:02:59]} 2. Nf3 {[%clk 0:02:46]}  Nc6 {[%clk 0:02:59]} 3. Bb5 {[%clk 0:02:42]}  a6 {[%clk 0:03:00]} 4. Ba4 {[%clk 0:02:40]}  Nf6 {[%clk 0:02:58]} 5. O-O {[%clk 0:02:40]}  b5 {[%clk 0:02:57]} 6. Bb3 {[%clk 0:02:38]}  Be7 {[%clk 0:02:58]} 7. Re1 {[%clk 0:02:34]}  d6 {[%clk 0:02:57]} 8. h3 {[%clk 0:02:30]}  O-O {[%clk 0:02:57]} 9. c3 {[%clk 0:02:30]}  Na5 {[%clk 0:02:58]} 10. Bc2 {[%clk 0:02:30]}  c5 {[%clk 0:02:58]} 11. d3 {[%clk 0:02:29]}  Be6 {[%clk 0:02:57]} 12. Nbd2 {[%clk 0:02:27]}  h6 {[%clk 0:02:57]} 13. Nf1 {[%clk 0:02:28]}  Nh5 {[%clk 0:02:56]} 14. Nxe5 {[%clk 0:02:19]}  dxe5 {[%clk 0:02:54]} 15. Qxh5 {[%clk 0:02:19]}  f5 {[%clk 0:02:55]} 16. exf5 {[%clk 0:02:14]}  Rxf5 {[%clk 0:02:55]} 17. Qe2 {[%clk 0:02:14]}  Bd6 {[%clk 0:02:52]} 18. Ng3 {[%clk 0:02:13]}  Rf7 {[%clk 0:02:48]} 19. Ne4 {[%clk 0:02:09]}  Be7 {[%clk 0:02:41]} 20. Be3 {[%clk 0:02:08]}  Bd5 {[%clk 0:02:38]} 21. Nxc5 {[%clk 0:02:02]}  Qc8 {[%clk 0:02:33]} 22. Ne4 {[%clk 0:01:59]}  Qe6 {[%clk 0:02:30]} 23. a4 {[%clk 0:01:50]}  b4 {[%clk 0:02:15]} 24. Qg4 {[%clk 0:01:20]}  Qc6 {[%clk 0:02:12]} 25. c4 {[%clk 0:00:40]}  Bxe4 {[%clk 0:02:09]} 26. Qxe4 {[%clk 0:00:39]}  Qxe4 {[%clk 0:02:09]} 27. dxe4 {[%clk 0:00:38]}  Nxc4 {[%clk 0:02:10]} 28. Bb3 {[%clk 0:00:38]}  Nxe3 {[%clk 0:02:04]} 29. Rxe3 {[%clk 0:00:34]}  Rc8 {[%clk 0:02:04]} 30. Rf3 {[%clk 0:00:33]}  Bf6 {[%clk 0:02:04]} 31. Rd1 {[%clk 0:00:30]}  Kf8 {[%clk 0:02:00]} 32. Bxf7 {[%clk 0:00:29]}  Kxf7 {[%clk 0:02:01]} 33. Rb3 {[%clk 0:00:23]}  a5 {[%clk 0:02:01]} 34. Rd5 {[%clk 0:00:23]}  Rc1+ {[%clk 0:02:00]} 35. Kh2 {[%clk 0:00:23]}  Bd8 {[%clk 0:01:59]} 36. Rxd8 {[%clk 0:00:22]} 1-0


[Site "https://www.chess.com"]

[Event "Titled Tuesday Blitz January 17 Late 2023"]
[White "Quinones Garcia, Santiago"]
[Black "Michalski, Olaf"]
[WhiteFideId "4408497"]
[BlackFideId "1106740"]
[WhiteElo "2248"]
[BlackElo "2273"]
[Result "1-0"]
[Round "06"]
[TimeControl "180+2"]
[Date "2023.01.17"]
[WhiteClock "0:00:59"]
[BlackClock "0:00:01"]

1. d4 {[%clk 0:02:54]}  d6 {[%clk 0:02:59]} 2. c4 {[%clk 0:02:54]}  g6 {[%clk 0:03:00]} 3. Nc3 {[%clk 0:02:55]}  Bg7 {[%clk 0:03:00]} 4. e4 {[%clk 0:02:55]}  Nc6 {[%clk 0:03:01]} 5. Nf3 {[%clk 0:02:56]}  Bg4 {[%clk 0:03:00]} 6. d5 {[%clk 0:02:55]}  Nd4 {[%clk 0:02:59]} 7. Be2 {[%clk 0:02:55]}  Nxe2 {[%clk 0:02:58]} 8. Qxe2 {[%clk 0:02:55]}  e5 {[%clk 0:02:57]} 9. O-O {[%clk 0:02:55]}  Nf6 {[%clk 0:02:56]} 10. h3 {[%clk 0:02:54]}  Bd7 {[%clk 0:02:55]} 11. Be3 {[%clk 0:02:54]}  Nh5 {[%clk 0:02:54]} 12. c5 {[%clk 0:02:51]}  O-O {[%clk 0:02:47]} 13. b4 {[%clk 0:02:49]}  Nf4 {[%clk 0:02:38]} 14. Qd2 {[%clk 0:02:44]}  f5 {[%clk 0:02:29]} 15. Kh2 {[%clk 0:02:32]}  fxe4 {[%clk 0:02:23]} 16. Nxe4 {[%clk 0:02:33]}  Nxh3 {[%clk 0:02:16]} 17. Nfg5 {[%clk 0:02:28]}  Nf4 {[%clk 0:02:06]} 18. cxd6 {[%clk 0:02:26]}  cxd6 {[%clk 0:01:59]} 19. g3 {[%clk 0:02:26]}  h6 {[%clk 0:01:26]} 20. gxf4 {[%clk 0:02:02]}  hxg5 {[%clk 0:00:58]} 21. fxg5 {[%clk 0:02:00]}  Bg4 {[%clk 0:00:43]} 22. Rac1 {[%clk 0:01:36]}  Bf3 {[%clk 0:00:29]} 23. Ng3 {[%clk 0:01:34]}  e4 {[%clk 0:00:20]} 24. Bd4 {[%clk 0:01:32]}  Rf7 {[%clk 0:00:18]} 25. Bxg7 {[%clk 0:01:28]}  Rxg7 {[%clk 0:00:18]} 26. Qf4 {[%clk 0:01:19]}  Qd7 {[%clk 0:00:11]} 27. Rh1 {[%clk 0:01:08]}  Rh7+ {[%clk 0:00:09]} 28. Kg1 {[%clk 0:01:08]}  Rxh1+ {[%clk 0:00:09]} 29. Nxh1 {[%clk 0:01:08]}  Qh3 {[%clk 0:00:09]} 30. Qh2 {[%clk 0:01:08]}  Qg4+ {[%clk 0:00:08]} 31. Qg3 {[%clk 0:01:05]}  Qh5 {[%clk 0:00:06]} 32. Kf1 {[%clk 0:00:51]}  Qxh1+ {[%clk 0:00:05]} 33. Qg1 {[%clk 0:00:52]}  Bg2+ {[%clk 0:00:04]} 34. Ke2 {[%clk 0:00:52]}  Bf3+ {[%clk 0:00:04]} 35. Ke3 {[%clk 0:00:52]}  Qh4 {[%clk 0:00:02]} 36. Qf1 {[%clk 0:00:53]}  Qxg5+ {[%clk 0:00:02]} 37. Kd4 {[%clk 0:00:54]}  Qe5+ {[%clk 0:00:02]} 38. Kc4 {[%clk 0:00:55]}  Rc8+ {[%clk 0:00:02]} 39. Kb3 {[%clk 0:00:55]}  Rxc1 {[%clk 0:00:02]} 40. Qxc1 {[%clk 0:00:56]}  Qxd5+ {[%clk 0:00:03]} 41. Ka3 {[%clk 0:00:56]}  Qc6 {[%clk 0:00:03]} 42. Qg5 {[%clk 0:00:56]}  Qa6+ {[%clk 0:00:03]} 43. Kb2 {[%clk 0:00:56]}  Qc6 {[%clk 0:00:03]} 44. Qxg6+ {[%clk 0:00:55]}  Kf8 {[%clk 0:00:03]} 45. Qf6+ {[%clk 0:00:56]}  Ke8 {[%clk 0:00:03]} 46. Qe6+ {[%clk 0:00:57]}  Kd8 {[%clk 0:00:03]} 47. Qg8+ {[%clk 0:00:57]}  Kc7 {[%clk 0:00:04]} 48. Qf7+ {[%clk 0:00:58]}  Kb6 {[%clk 0:00:04]} 49. Qb3 {[%clk 0:00:56]}  Kc7 {[%clk 0:00:04]} 50. a4 {[%clk 0:00:57]}  d5 {[%clk 0:00:03]} 51. Qe3 {[%clk 0:00:56]}  Qf6+ {[%clk 0:00:03]} 52. Kb3 {[%clk 0:00:56]}  d4 {[%clk 0:00:03]} 53. Qc1+ {[%clk 0:00:55]}  Kd7 {[%clk 0:00:03]} 54. Qc5 {[%clk 0:00:56]}  Qe6+ {[%clk 0:00:02]} 55. Ka3 {[%clk 0:00:56]}  d3 {[%clk 0:00:02]} 56. Qd4+ {[%clk 0:00:56]}  Qd6 {[%clk 0:00:02]} 57. Qg7+ {[%clk 0:00:57]}  Ke6 {[%clk 0:00:02]} 58. Qc3 {[%clk 0:00:58]}  Kf5 {[%clk 0:00:02]} 59. Qg7 {[%clk 0:00:58]}  d2 {[%clk 0:00:01]} 60. Qf7+ {[%clk 0:00:59]} 1-0


[Site "https://www.chess.com"]

[Event "Titled Tuesday Blitz January 17 Late 2023"]
[White "rikchessmx"]
[Black "Adithya A Chullikkad"]
[BlackFideId "45078734"]
[WhiteElo "2289"]
[BlackElo "2259"]
[Result "0-1"]
[Round "06"]
[TimeControl "180+2"]
[Date "2023.01.17"]
[WhiteClock "0:00:15"]
[BlackClock "0:00:05"]

1. e4 {[%clk 0:03:00]}  c5 {[%clk 0:02:59]} 2. Nf3 {[%clk 0:03:00]}  d6 {[%clk 0:02:59]} 3. d4 {[%clk 0:03:01]}  c4 {[%clk 0:03:00]} 4. Bxc4 {[%clk 0:03:00]}  e6 {[%clk 0:02:53]} 5. Bb3 {[%clk 0:02:59]}  Be7 {[%clk 0:02:52]} 6. c4 {[%clk 0:02:58]}  Nf6 {[%clk 0:02:52]} 7. Qe2 {[%clk 0:02:57]}  O-O {[%clk 0:02:52]} 8. Nc3 {[%clk 0:02:57]}  Nc6 {[%clk 0:02:48]} 9. Be3 {[%clk 0:02:56]}  a5 {[%clk 0:02:44]} 10. O-O {[%clk 0:02:54]}  a4 {[%clk 0:02:42]} 11. Bxa4 {[%clk 0:02:52]}  Nxe4 {[%clk 0:02:42]} 12. Bxc6 {[%clk 0:02:50]}  Nxc3 {[%clk 0:02:41]} 13. bxc3 {[%clk 0:02:49]}  bxc6 {[%clk 0:02:41]} 14. Nd2 {[%clk 0:02:47]}  Ba6 {[%clk 0:02:41]} 15. Qg4 {[%clk 0:02:46]}  Qa5 {[%clk 0:02:38]} 16. Bh6 {[%clk 0:02:41]}  Bf6 {[%clk 0:02:22]} 17. Ne4 {[%clk 0:02:40]}  Qd8 {[%clk 0:02:22]} 18. Nd2 {[%clk 0:02:30]}  Kh8 {[%clk 0:02:21]} 19. Be3 {[%clk 0:02:28]}  Qa5 {[%clk 0:02:20]} 20. f4 {[%clk 0:02:27]}  Qxc3 {[%clk 0:02:20]} 21. Qf3 {[%clk 0:02:22]}  Bxd4 {[%clk 0:01:51]} 22. Bxd4 {[%clk 0:02:21]}  Qxd4+ {[%clk 0:01:50]} 23. Qf2 {[%clk 0:02:22]}  Qxf2+ {[%clk 0:01:48]} 24. Rxf2 {[%clk 0:02:23]}  Rfb8 {[%clk 0:01:48]} 25. Ne4 {[%clk 0:02:19]}  d5 {[%clk 0:01:41]} 26. cxd5 {[%clk 0:02:18]}  cxd5 {[%clk 0:01:41]} 27. Ng5 {[%clk 0:02:16]}  Kg8 {[%clk 0:01:39]} 28. f5 {[%clk 0:02:16]}  h6 {[%clk 0:01:39]} 29. Nh3 {[%clk 0:02:14]}  e5 {[%clk 0:01:38]} 30. f6 {[%clk 0:02:13]}  g6 {[%clk 0:01:38]} 31. Rd2 {[%clk 0:02:12]}  Bc4 {[%clk 0:01:28]} 32. a4 {[%clk 0:02:12]}  e4 {[%clk 0:01:26]} 33. Kf2 {[%clk 0:02:11]}  Rb3 {[%clk 0:01:24]} 34. Rc2 {[%clk 0:02:05]}  e3+ {[%clk 0:01:23]} 35. Kf3 {[%clk 0:02:03]}  Bd3 {[%clk 0:00:57]} 36. Rc7 {[%clk 0:01:34]}  Be4+ {[%clk 0:00:57]} 37. Ke2 {[%clk 0:01:29]}  d4 {[%clk 0:00:55]} 38. Nf4 {[%clk 0:01:27]}  Rb2+ {[%clk 0:00:54]} 39. Ke1 {[%clk 0:01:26]}  g5 {[%clk 0:00:36]} 40. Re7 {[%clk 0:01:17]}  gxf4 {[%clk 0:00:31]} 41. Rxe4 {[%clk 0:01:16]}  d3 {[%clk 0:00:29]} 42. Rxf4 {[%clk 0:01:14]}  Rxg2 {[%clk 0:00:28]} 43. Rf1 {[%clk 0:01:03]}  Rc8 {[%clk 0:00:22]} 44. a5 {[%clk 0:00:55]}  Rgc2 {[%clk 0:00:17]} 45. Rg1+ {[%clk 0:00:53]}  Kh8 {[%clk 0:00:16]} 46. Kf1 {[%clk 0:00:53]}  Rc1+ {[%clk 0:00:16]} 47. Kg2 {[%clk 0:00:53]}  R8c2+ {[%clk 0:00:13]} 48. Kf3 {[%clk 0:00:52]}  Rxg1 {[%clk 0:00:08]} 49. Rxg1 {[%clk 0:00:51]}  e2 {[%clk 0:00:08]} 50. Ke3 {[%clk 0:00:49]}  Ra2 {[%clk 0:00:02]} 51. Kxd3 {[%clk 0:00:48]}  Rxa5 {[%clk 0:00:03]} 52. Kxe2 {[%clk 0:00:47]}  Rf5 {[%clk 0:00:03]} 53. Ke3 {[%clk 0:00:41]}  Rxf6 {[%clk 0:00:03]} 54. Ke4 {[%clk 0:00:41]}  Kh7 {[%clk 0:00:04]} 55. Rg2 {[%clk 0:00:38]}  Rg6 {[%clk 0:00:04]} 56. Rf2 {[%clk 0:00:38]}  Kg7 {[%clk 0:00:04]} 57. Ke5 {[%clk 0:00:38]}  h5 {[%clk 0:00:05]} 58. Rf5 {[%clk 0:00:37]}  f6+ {[%clk 0:00:03]} 59. Ke6 {[%clk 0:00:36]}  Rg2 {[%clk 0:00:03]} 60. Rxh5 {[%clk 0:00:35]}  Kg6 {[%clk 0:00:02]} 61. Rh8 {[%clk 0:00:35]}  Re2+ {[%clk 0:00:01]} 62. Kd5 {[%clk 0:00:34]}  Rd2+ {[%clk 0:00:01]} 63. Ke4 {[%clk 0:00:34]}  Re2+ {[%clk 0:00:02]} 64. Kf3 {[%clk 0:00:34]}  Kg7 {[%clk 0:00:02]} 65. Rh3 {[%clk 0:00:30]}  Re5 {[%clk 0:00:03]} 66. Kf4 {[%clk 0:00:30]}  Kf7 {[%clk 0:00:03]} 67. Rg3 {[%clk 0:00:26]}  Ke6 {[%clk 0:00:03]} 68. h4 {[%clk 0:00:26]}  Rf5+ {[%clk 0:00:04]} 69. Ke4 {[%clk 0:00:26]}  Re5+ {[%clk 0:00:05]} 70. Kf3 {[%clk 0:00:25]}  Rf5+ {[%clk 0:00:05]} 71. Kg4 {[%clk 0:00:25]}  Rc5 {[%clk 0:00:05]} 72. Re3+ {[%clk 0:00:25]}  Re5 {[%clk 0:00:05]} 73. Ra3 {[%clk 0:00:24]}  Re4+ {[%clk 0:00:05]} 74. Kh5 {[%clk 0:00:24]}  Re5+ {[%clk 0:00:06]} 75. Kg6 {[%clk 0:00:23]}  Re1 {[%clk 0:00:05]} 76. Ra6+ {[%clk 0:00:23]}  Ke5 {[%clk 0:00:05]} 77. Ra8 {[%clk 0:00:22]}  Rg1+ {[%clk 0:00:05]} 78. Kf7 {[%clk 0:00:21]}  f5 {[%clk 0:00:06]} 79. h5 {[%clk 0:00:21]}  f4 {[%clk 0:00:05]} 80. h6 {[%clk 0:00:20]}  f3 {[%clk 0:00:06]} 81. Rg8 {[%clk 0:00:16]}  f2 {[%clk 0:00:05]} 82. h7 {[%clk 0:00:17]}  f1=Q+ {[%clk 0:00:05]} 83. Ke7 {[%clk 0:00:17]}  Qf6+ {[%clk 0:00:03]} 84. Kd7 {[%clk 0:00:17]}  Rd1+ {[%clk 0:00:04]} 85. Kc7 {[%clk 0:00:16]}  Qe7+ {[%clk 0:00:05]} 86. Kc6 {[%clk 0:00:16]}  Rc1+ {[%clk 0:00:05]} 87. Kb5 {[%clk 0:00:16]}  Qb7+ {[%clk 0:00:05]} 88. Ka5 {[%clk 0:00:15]}  Ra1# {[%clk 0:00:05]} 0-1


[Site "https://www.chess.com"]

[Event "Titled Tuesday Blitz January 17 Late 2023"]
[White "Ovezdurdyyeva, Jemal"]
[Black "Stead, Kerry"]
[WhiteFideId "14001888"]
[BlackFideId "3202577"]
[WhiteElo "2078"]
[BlackElo "1908"]
[Result "1-0"]
[Round "06"]
[TimeControl "180+2"]
[Date "2023.01.17"]
[WhiteClock "0:01:23"]
[BlackClock "0:01:12"]

1. e4 {[%clk 0:03:00]}  e5 {[%clk 0:02:54]} 2. Nf3 {[%clk 0:03:00]}  Nc6 {[%clk 0:02:54]} 3. Bc4 {[%clk 0:03:00]}  Nf6 {[%clk 0:02:53]} 4. d3 {[%clk 0:02:57]}  d5 {[%clk 0:02:53]} 5. exd5 {[%clk 0:02:56]}  Nxd5 {[%clk 0:02:51]} 6. h3 {[%clk 0:02:56]}  Be6 {[%clk 0:02:48]} 7. O-O {[%clk 0:02:55]}  Bc5 {[%clk 0:02:46]} 8. Qe2 {[%clk 0:02:54]}  O-O {[%clk 0:02:43]} 9. Nxe5 {[%clk 0:02:50]}  Nd4 {[%clk 0:02:41]} 10. Qd1 {[%clk 0:02:44]}  Qf6 {[%clk 0:02:39]} 11. Nf3 {[%clk 0:02:29]}  Nxf3+ {[%clk 0:02:37]} 12. Qxf3 {[%clk 0:02:30]}  Qxf3 {[%clk 0:02:37]} 13. gxf3 {[%clk 0:02:31]}  Rad8 {[%clk 0:02:33]} 14. Kg2 {[%clk 0:02:30]}  Bd6 {[%clk 0:02:28]} 15. Bxd5 {[%clk 0:02:26]}  Bxd5 {[%clk 0:02:27]} 16. Nc3 {[%clk 0:02:26]}  Bc6 {[%clk 0:02:28]} 17. Ne4 {[%clk 0:02:27]}  Be7 {[%clk 0:02:24]} 18. Bd2 {[%clk 0:02:24]}  f5 {[%clk 0:02:19]} 19. Nc3 {[%clk 0:02:17]}  Rf6 {[%clk 0:02:12]} 20. Bf4 {[%clk 0:02:05]}  Rg6+ {[%clk 0:02:11]} 21. Kh2 {[%clk 0:02:05]}  Bxf3 {[%clk 0:02:09]} 22. Rg1 {[%clk 0:02:05]}  Bd6 {[%clk 0:02:02]} 23. Bxd6 {[%clk 0:01:58]}  Rdxd6 {[%clk 0:02:02]} 24. Nb5 {[%clk 0:01:58]}  Rxg1 {[%clk 0:01:56]} 25. Rxg1 {[%clk 0:01:56]}  Rc6 {[%clk 0:01:53]} 26. Nd4 {[%clk 0:01:55]}  Bd5 {[%clk 0:01:46]} 27. Nxc6 {[%clk 0:01:55]}  Bxc6 {[%clk 0:01:47]} 28. Re1 {[%clk 0:01:54]}  Kf7 {[%clk 0:01:47]} 29. Kg3 {[%clk 0:01:54]}  g5 {[%clk 0:01:45]} 30. Re5 {[%clk 0:01:48]}  Kf6 {[%clk 0:01:45]} 31. Rc5 {[%clk 0:01:48]}  h5 {[%clk 0:01:40]} 32. d4 {[%clk 0:01:42]}  h4+ {[%clk 0:01:39]} 33. Kh2 {[%clk 0:01:42]}  Be4 {[%clk 0:01:21]} 34. Rxc7 {[%clk 0:01:40]}  a6 {[%clk 0:01:21]} 35. c4 {[%clk 0:01:39]}  g4 {[%clk 0:01:21]} 36. d5 {[%clk 0:01:36]}  Kg5 {[%clk 0:01:18]} 37. d6 {[%clk 0:01:31]}  Kf4 {[%clk 0:01:18]} 38. d7 {[%clk 0:01:28]}  g3+ {[%clk 0:01:18]} 39. fxg3+ {[%clk 0:01:27]}  hxg3+ {[%clk 0:01:19]} 40. Kg1 {[%clk 0:01:28]}  Ke3 {[%clk 0:01:13]} 41. d8=Q {[%clk 0:01:27]}  f4 {[%clk 0:01:14]} 42. Qg5 {[%clk 0:01:24]}  Kf3 {[%clk 0:01:12]} 43. Rf7 {[%clk 0:01:23]} 1-0


[Site "https://www.chess.com"]

[Event "Titled Tuesday Blitz January 17 Late 2023"]
[White "Marcolino, Daniel Mattos"]
[Black "Vargas, Mauricio"]
[WhiteFideId "2106841"]
[BlackFideId "4404572"]
[WhiteElo "2006"]
[BlackElo "2035"]
[Result "0-1"]
[Round "06"]
[TimeControl "180+2"]
[Date "2023.01.17"]
[WhiteClock "0:00:12"]
[BlackClock "0:00:09"]

1. d4 {[%clk 0:03:00]}  d5 {[%clk 0:02:59]} 2. Nf3 {[%clk 0:03:01]}  Nf6 {[%clk 0:02:55]} 3. g3 {[%clk 0:03:01]}  g6 {[%clk 0:02:55]} 4. Bg2 {[%clk 0:03:02]}  Bg7 {[%clk 0:02:55]} 5. O-O {[%clk 0:03:02]}  b6 {[%clk 0:02:51]} 6. c4 {[%clk 0:03:02]}  Bb7 {[%clk 0:02:46]} 7. Nc3 {[%clk 0:03:00]}  O-O {[%clk 0:02:43]} 8. Ne5 {[%clk 0:02:57]}  c6 {[%clk 0:02:20]} 9. Qb3 {[%clk 0:02:48]}  dxc4 {[%clk 0:02:13]} 10. Qxc4 {[%clk 0:02:48]}  e6 {[%clk 0:01:53]} 11. Rd1 {[%clk 0:02:21]}  Nd5 {[%clk 0:01:50]} 12. e4 {[%clk 0:02:04]}  b5 {[%clk 0:01:47]} 13. Qb3 {[%clk 0:02:00]}  Nf6 {[%clk 0:01:36]} 14. Bg5 {[%clk 0:01:53]}  h6 {[%clk 0:01:34]} 15. Bf4 {[%clk 0:01:52]}  g5 {[%clk 0:01:32]} 16. Be3 {[%clk 0:01:51]}  a5 {[%clk 0:01:31]} 17. a4 {[%clk 0:01:33]}  b4 {[%clk 0:01:28]} 18. Ne2 {[%clk 0:01:34]}  Qc7 {[%clk 0:01:11]} 19. Rac1 {[%clk 0:01:34]}  Qe7 {[%clk 0:00:57]} 20. Nc4 {[%clk 0:01:05]}  Rc8 {[%clk 0:00:53]} 21. e5 {[%clk 0:01:05]}  Nd5 {[%clk 0:00:50]} 22. Nd6 {[%clk 0:01:05]}  Rc7 {[%clk 0:00:47]} 23. f4 {[%clk 0:00:56]}  Ba6 {[%clk 0:00:44]} 24. Bf3 {[%clk 0:00:47]}  Nd7 {[%clk 0:00:37]} 25. fxg5 {[%clk 0:00:44]}  hxg5 {[%clk 0:00:35]} 26. Bxd5 {[%clk 0:00:35]}  exd5 {[%clk 0:00:35]} 27. Kg2 {[%clk 0:00:21]}  Bxe2 {[%clk 0:00:34]} 28. Re1 {[%clk 0:00:21]}  Bc4 {[%clk 0:00:33]} 29. Qc2 {[%clk 0:00:21]}  b3 {[%clk 0:00:32]} 30. Qf2 {[%clk 0:00:21]}  c5 {[%clk 0:00:23]} 31. Nxc4 {[%clk 0:00:18]}  dxc4 {[%clk 0:00:23]} 32. Rxc4 {[%clk 0:00:18]}  Nb6 {[%clk 0:00:20]} 33. Rxc5 {[%clk 0:00:18]}  Rxc5 {[%clk 0:00:20]} 34. dxc5 {[%clk 0:00:18]}  Nd5 {[%clk 0:00:16]} 35. c6 {[%clk 0:00:18]}  Nxe3+ {[%clk 0:00:16]} 36. Qxe3 {[%clk 0:00:18]}  Rc8 {[%clk 0:00:16]} 37. Qb6 {[%clk 0:00:17]}  Qc7 {[%clk 0:00:14]} 38. Qxc7 {[%clk 0:00:12]}  Rxc7 {[%clk 0:00:15]} 39. Rc1 {[%clk 0:00:12]}  Bxe5 {[%clk 0:00:15]} 40. Kf3 {[%clk 0:00:13]}  Bxb2 {[%clk 0:00:15]} 41. Rc5 {[%clk 0:00:14]}  Ba3 {[%clk 0:00:12]} 42. Rb5 {[%clk 0:00:14]}  b2 {[%clk 0:00:11]} 43. Rb6 {[%clk 0:00:12]}  Bb4 {[%clk 0:00:11]} 44. Rb8+ {[%clk 0:00:11]}  Kg7 {[%clk 0:00:10]} 45. Rb7 {[%clk 0:00:12]}  Rxc6 {[%clk 0:00:09]} 0-1


[Site "https://www.chess.com"]